[Event "Titled Tuesday Blitz April 11 Early 2023"]
[White "Piesik, Piotr"]
[Black "Qashashvili, Alexandre"]
[WhiteFideId "1136194"]
[BlackFideId "13600842"]
[WhiteElo "2299"]
[BlackElo "2405"]
[Result "1-0"]
[Round "01"]
[TimeControl "180+2"]
[Date "2023.04.11"]
[WhiteClock "0:01:06"]
[BlackClock "0:00:04"]

1. Nf3 {[%clk 0:03:00]}  c6 {[%clk 0:02:49]} 2. g3 {[%clk 0:03:00]}  d5 {[%clk 0:02:46]} 3. Bg2 {[%clk 0:03:00]}  Nf6 {[%clk 0:02:45]} 4. O-O {[%clk 0:03:01]}  Bf5 {[%clk 0:02:44]} 5. d3 {[%clk 0:03:01]}  Qc8 {[%clk 0:02:43]} 6. Nbd2 {[%clk 0:03:01]}  Bh3 {[%clk 0:02:42]} 7. e4 {[%clk 0:03:00]}  dxe4 {[%clk 0:02:41]} 8. dxe4 {[%clk 0:03:00]}  h5 {[%clk 0:02:37]} 9. Bxh3 {[%clk 0:03:00]}  Qxh3 {[%clk 0:02:35]} 10. Ng5 {[%clk 0:03:01]}  Qg4 {[%clk 0:02:33]} 11. Qxg4 {[%clk 0:02:58]}  Nxg4 {[%clk 0:02:34]} 12. Nc4 {[%clk 0:02:51]}  e6 {[%clk 0:02:32]} 13. Bf4 {[%clk 0:02:46]}  Nd7 {[%clk 0:02:30]} 14. Rad1 {[%clk 0:02:43]}  e5 {[%clk 0:02:23]} 15. Bc1 {[%clk 0:02:23]}  Bc5 {[%clk 0:02:20]} 16. Nxf7 {[%clk 0:02:16]}  Nxf2 {[%clk 0:02:03]} 17. Rxf2 {[%clk 0:02:13]}  Bxf2+ {[%clk 0:02:01]} 18. Kxf2 {[%clk 0:02:08]}  O-O {[%clk 0:01:37]} 19. Rxd7 {[%clk 0:02:07]}  Rxf7+ {[%clk 0:01:36]} 20. Rxf7 {[%clk 0:02:08]}  Kxf7 {[%clk 0:01:35]} 21. Nxe5+ {[%clk 0:02:08]}  Ke6 {[%clk 0:01:31]} 22. Nd3 {[%clk 0:02:08]}  Rf8+ {[%clk 0:01:24]} 23. Ke2 {[%clk 0:02:08]}  b6 {[%clk 0:01:21]} 24. a4 {[%clk 0:02:04]}  Rf7 {[%clk 0:01:18]} 25. Nf4+ {[%clk 0:02:04]}  Ke5 {[%clk 0:01:14]} 26. Ke3 {[%clk 0:02:02]}  g5 {[%clk 0:00:53]} 27. Nxh5 {[%clk 0:01:58]}  Rf1 {[%clk 0:00:45]} 28. Bd2 {[%clk 0:01:58]}  Rh1 {[%clk 0:00:43]} 29. Bc3+ {[%clk 0:01:57]}  Kd6 {[%clk 0:00:39]} 30. Ng7 {[%clk 0:01:26]}  Rxh2 {[%clk 0:00:34]} 31. Nf5+ {[%clk 0:01:27]}  Kd7 {[%clk 0:00:23]} 32. Kd3 {[%clk 0:01:23]}  Rf2 {[%clk 0:00:15]} 33. Bd4 {[%clk 0:01:18]}  Rf1 {[%clk 0:00:12]} 34. b3 {[%clk 0:01:18]}  g4 {[%clk 0:00:10]} 35. Be5 {[%clk 0:01:13]}  Ke6 {[%clk 0:00:07]} 36. Bf4 {[%clk 0:01:11]}  b5 {[%clk 0:00:07]} 37. Nd4+ {[%clk 0:01:08]}  Kd7 {[%clk 0:00:05]} 38. axb5 {[%clk 0:01:08]}  cxb5 {[%clk 0:00:06]} 39. Nxb5 {[%clk 0:01:08]}  a6 {[%clk 0:00:06]} 40. Nd4 {[%clk 0:01:06]}  Ke7 {[%clk 0:00:04]} 41. Nf5+ {[%clk 0:01:06]} 1-0


[Site "https://www.chess.com"]

[Event "Titled Tuesday Blitz April 11 Early 2023"]
[White "Alahakoon, Isuru"]
[Black "Arabidze, Meri"]
[WhiteFideId "9900993"]
[BlackFideId "13604040"]
[WhiteElo "1995"]
[BlackElo "2405"]
[Result "0-1"]
[Round "01"]
[TimeControl "180+2"]
[Date "2023.04.11"]
[WhiteClock "0:00:05"]
[BlackClock "0:00:06"]

1. Nf3 {[%clk 0:02:57]}  b6 {[%clk 0:02:59]} 2. e4 {[%clk 0:02:56]}  Bb7 {[%clk 0:02:59]} 3. Nc3 {[%clk 0:02:57]}  g6 {[%clk 0:03:00]} 4. d4 {[%clk 0:02:56]}  Bg7 {[%clk 0:03:00]} 5. Bc4 {[%clk 0:02:56]}  e6 {[%clk 0:03:00]} 6. O-O {[%clk 0:02:54]}  h6 {[%clk 0:03:00]} 7. a4 {[%clk 0:02:52]}  a6 {[%clk 0:02:56]} 8. Re1 {[%clk 0:02:51]}  Ne7 {[%clk 0:02:55]} 9. Be3 {[%clk 0:02:47]}  d6 {[%clk 0:02:55]} 10. Qd2 {[%clk 0:02:46]}  Nd7 {[%clk 0:02:52]} 11. Rad1 {[%clk 0:02:36]}  g5 {[%clk 0:02:52]} 12. h3 {[%clk 0:02:32]}  Ng6 {[%clk 0:02:51]} 13. b4 {[%clk 0:02:14]}  O-O {[%clk 0:02:47]} 14. d5 {[%clk 0:02:00]}  e5 {[%clk 0:02:46]} 15. Ne2 {[%clk 0:01:55]}  a5 {[%clk 0:02:35]} 16. b5 {[%clk 0:01:46]}  Nf6 {[%clk 0:02:31]} 17. Ng3 {[%clk 0:01:45]}  Bc8 {[%clk 0:02:32]} 18. Nh2 {[%clk 0:01:38]}  Nf4 {[%clk 0:02:30]} 19. Be2 {[%clk 0:01:33]}  Bd7 {[%clk 0:02:09]} 20. Ng4 {[%clk 0:01:31]}  Qc8 {[%clk 0:02:08]} 21. Nxf6+ {[%clk 0:01:28]}  Bxf6 {[%clk 0:02:09]} 22. Nh5 {[%clk 0:01:23]}  Bh8 {[%clk 0:02:00]} 23. h4 {[%clk 0:01:14]}  Bg4 {[%clk 0:01:36]} 24. Ng3 {[%clk 0:01:06]}  gxh4 {[%clk 0:01:09]} 25. Bxf4 {[%clk 0:01:06]}  hxg3 {[%clk 0:00:48]} 26. Bxg3 {[%clk 0:01:04]}  Bg7 {[%clk 0:00:43]} 27. Bxg4 {[%clk 0:01:00]}  Qxg4 {[%clk 0:00:43]} 28. Qe2 {[%clk 0:00:54]}  Qg6 {[%clk 0:00:39]} 29. Rd3 {[%clk 0:00:52]}  f5 {[%clk 0:00:39]} 30. Bh4 {[%clk 0:00:45]}  Kh7 {[%clk 0:00:22]} 31. Rg3 {[%clk 0:00:41]}  Qf7 {[%clk 0:00:22]} 32. exf5 {[%clk 0:00:28]}  Qxf5 {[%clk 0:00:23]} 33. Qe4 {[%clk 0:00:29]}  Qxe4 {[%clk 0:00:23]} 34. Rxe4 {[%clk 0:00:30]}  Rf7 {[%clk 0:00:24]} 35. Rc3 {[%clk 0:00:21]}  Bf8 {[%clk 0:00:07]} 36. f3 {[%clk 0:00:20]}  Ra7 {[%clk 0:00:04]} 37. Bd8 {[%clk 0:00:18]}  Rd7 {[%clk 0:00:03]} 38. Bh4 {[%clk 0:00:17]}  Be7 {[%clk 0:00:03]} 39. Bxe7 {[%clk 0:00:16]}  Rxe7 {[%clk 0:00:04]} 40. Rec4 {[%clk 0:00:17]}  Kg6 {[%clk 0:00:04]} 41. Kf2 {[%clk 0:00:17]}  Rf7 {[%clk 0:00:04]} 42. Ke3 {[%clk 0:00:16]}  h5 {[%clk 0:00:04]} 43. Rh4 {[%clk 0:00:13]}  Kg5 {[%clk 0:00:04]} 44. Rcc4 {[%clk 0:00:12]}  Rh7 {[%clk 0:00:04]} 45. g4 {[%clk 0:00:11]}  Ra8 {[%clk 0:00:03]} 46. Rxh5+ {[%clk 0:00:11]}  Rxh5 {[%clk 0:00:03]} 47. gxh5 {[%clk 0:00:12]}  Rc8 {[%clk 0:00:04]} 48. Ke4 {[%clk 0:00:11]}  Kxh5 {[%clk 0:00:04]} 49. f4 {[%clk 0:00:12]}  exf4 {[%clk 0:00:03]} 50. Kxf4 {[%clk 0:00:13]}  Kg6 {[%clk 0:00:03]} 51. Kg4 {[%clk 0:00:12]}  Kf6 {[%clk 0:00:03]} 52. Kf4 {[%clk 0:00:12]}  Ke7 {[%clk 0:00:03]} 53. Re4+ {[%clk 0:00:12]}  Kd7 {[%clk 0:00:04]} 54. Re6 {[%clk 0:00:11]}  Rf8+ {[%clk 0:00:04]} 55. Ke4 {[%clk 0:00:12]}  Rf2 {[%clk 0:00:04]} 56. c4 {[%clk 0:00:12]}  Ra2 {[%clk 0:00:04]} 57. Rg6 {[%clk 0:00:11]}  Rxa4 {[%clk 0:00:04]} 58. Kd4 {[%clk 0:00:11]}  Kc8 {[%clk 0:00:05]} 59. Rg8+ {[%clk 0:00:11]}  Kb7 {[%clk 0:00:05]} 60. Rg7 {[%clk 0:00:11]}  Ra3 {[%clk 0:00:05]} 61. Rh7 {[%clk 0:00:10]}  Rb3 {[%clk 0:00:05]} 62. Rh2 {[%clk 0:00:09]}  a4 {[%clk 0:00:06]} 63. Ra2 {[%clk 0:00:09]}  a3 {[%clk 0:00:06]} 64. Ke4 {[%clk 0:00:08]}  Kc8 {[%clk 0:00:06]} 65. Kd4 {[%clk 0:00:08]}  Kd7 {[%clk 0:00:07]} 66. Rh2 {[%clk 0:00:06]}  Ke7 {[%clk 0:00:06]} 67. Rh7+ {[%clk 0:00:06]}  Kd8 {[%clk 0:00:06]} 68. Rh8+ {[%clk 0:00:06]}  Kd7 {[%clk 0:00:06]} 69. Rh7+ {[%clk 0:00:07]}  Kc8 {[%clk 0:00:06]} 70. Rh8+ {[%clk 0:00:07]}  Kb7 {[%clk 0:00:07]} 71. Rh2 {[%clk 0:00:08]}  Rb2 {[%clk 0:00:07]} 72. Rh3 {[%clk 0:00:07]}  a2 {[%clk 0:00:07]} 73. Ra3 {[%clk 0:00:08]}  Kc8 {[%clk 0:00:08]} 74. Kc3 {[%clk 0:00:08]}  Rf2 {[%clk 0:00:07]} 75. Kb3 {[%clk 0:00:07]}  Kd7 {[%clk 0:00:07]} 76. Rxa2 {[%clk 0:00:07]}  Rxa2 {[%clk 0:00:07]} 77. Kxa2 {[%clk 0:00:08]}  Ke7 {[%clk 0:00:08]} 78. Kb3 {[%clk 0:00:08]}  Kf6 {[%clk 0:00:09]} 79. Kc3 {[%clk 0:00:07]}  Kf5 {[%clk 0:00:09]} 80. Kd3 {[%clk 0:00:06]}  Kg5 {[%clk 0:00:04]} 81. Ke4 {[%clk 0:00:05]}  Kg4 {[%clk 0:00:04]} 82. Ke3 {[%clk 0:00:05]}  Kg3 {[%clk 0:00:05]} 83. Ke4 {[%clk 0:00:05]}  Kf2 {[%clk 0:00:05]} 84. Kf5 {[%clk 0:00:04]}  Ke3 {[%clk 0:00:05]} 85. Ke6 {[%clk 0:00:04]}  Kd4 {[%clk 0:00:06]} 86. Kd7 {[%clk 0:00:05]}  Kxc4 {[%clk 0:00:06]} 87. Kc6 {[%clk 0:00:05]}  Kd4 {[%clk 0:00:05]} 88. Kxc7 {[%clk 0:00:05]}  Kc5 {[%clk 0:00:06]} 0-1


[Site "https://www.chess.com"]

[Event "Titled Tuesday Blitz April 11 Early 2023"]
[White "Makhmudov, Shukhrat"]
[Black "Williams, Simon K"]
[WhiteFideId "14200775"]
[BlackFideId "404454"]
[WhiteElo "2135"]
[BlackElo "2468"]
[Result "0-1"]
[Round "01"]
[TimeControl "180+2"]
[Date "2023.04.11"]
[WhiteClock "0:00:01"]
[BlackClock "0:00:18"]

1. e4 {[%clk 0:02:56]}  g6 {[%clk 0:02:55]} 2. d4 {[%clk 0:02:55]}  Bg7 {[%clk 0:02:54]} 3. Nc3 {[%clk 0:02:55]}  d6 {[%clk 0:02:54]} 4. Be3 {[%clk 0:02:54]}  a6 {[%clk 0:02:54]} 5. Qd2 {[%clk 0:02:53]}  b5 {[%clk 0:02:54]} 6. a3 {[%clk 0:02:53]}  Bb7 {[%clk 0:02:54]} 7. f3 {[%clk 0:02:53]}  Nd7 {[%clk 0:02:53]} 8. Nh3 {[%clk 0:02:51]}  c5 {[%clk 0:02:49]} 9. Nf2 {[%clk 0:02:49]}  cxd4 {[%clk 0:02:47]} 10. Bxd4 {[%clk 0:02:49]}  Ngf6 {[%clk 0:02:47]} 11. h4 {[%clk 0:02:47]}  e5 {[%clk 0:02:14]} 12. Be3 {[%clk 0:02:42]}  Nb6 {[%clk 0:02:12]} 13. Ng4 {[%clk 0:02:10]}  Nxg4 {[%clk 0:02:08]} 14. fxg4 {[%clk 0:02:10]}  Qd7 {[%clk 0:02:02]} 15. Bxb6 {[%clk 0:02:06]}  O-O {[%clk 0:01:55]} 16. Be2 {[%clk 0:01:58]}  f5 {[%clk 0:01:51]} 17. gxf5 {[%clk 0:01:54]}  gxf5 {[%clk 0:01:51]} 18. Bf3 {[%clk 0:01:49]}  fxe4 {[%clk 0:01:47]} 19. Nxe4 {[%clk 0:01:34]}  d5 {[%clk 0:01:25]} 20. Nc5 {[%clk 0:01:33]}  Qc6 {[%clk 0:01:25]} 21. Nxb7 {[%clk 0:01:31]}  e4 {[%clk 0:01:25]} 22. Be2 {[%clk 0:00:27]}  Qxb6 {[%clk 0:01:20]} 23. Qxd5+ {[%clk 0:00:22]}  Kh8 {[%clk 0:01:19]} 24. O-O-O {[%clk 0:00:21]}  b4 {[%clk 0:01:10]} 25. a4 {[%clk 0:00:15]}  Qe3+ {[%clk 0:01:02]} 26. Rd2 {[%clk 0:00:14]}  Rac8 {[%clk 0:00:43]} 27. Nd6 {[%clk 0:00:14]}  Rc7 {[%clk 0:00:33]} 28. Qxe4 {[%clk 0:00:12]}  Qc5 {[%clk 0:00:32]} 29. Bd3 {[%clk 0:00:07]}  Bh6 {[%clk 0:00:29]} 30. Nf5 {[%clk 0:00:03]}  Bxd2+ {[%clk 0:00:27]} 31. Kxd2 {[%clk 0:00:03]}  Rcf7 {[%clk 0:00:22]} 32. g4 {[%clk 0:00:02]}  b3 {[%clk 0:00:21]} 33. c3 {[%clk 0:00:01]}  Qc8 {[%clk 0:00:18]} 0-1


[Site "https://www.chess.com"]

[Event "Titled Tuesday Blitz April 11 Early 2023"]
[White "Leiva, Gianmarco"]
[Black "Fajdetic, Hrvoje"]
[WhiteFideId "3804399"]
[BlackFideId "14501945"]
[WhiteElo "2345"]
[BlackElo "2185"]
[Result "1-0"]
[Round "01"]
[TimeControl "180+2"]
[Date "2023.04.11"]
[WhiteClock "0:01:15"]
[BlackClock "0:00:20"]

1. e4 {[%clk 0:02:52]}  e6 {[%clk 0:03:00]} 2. d4 {[%clk 0:02:52]}  d5 {[%clk 0:03:00]} 3. Nd2 {[%clk 0:02:53]}  dxe4 {[%clk 0:03:00]} 4. Nxe4 {[%clk 0:02:53]}  Nd7 {[%clk 0:03:01]} 5. Nf3 {[%clk 0:02:52]}  Ngf6 {[%clk 0:03:01]} 6. Ng3 {[%clk 0:02:53]}  Bd6 {[%clk 0:02:58]} 7. Bc4 {[%clk 0:02:50]}  b6 {[%clk 0:02:58]} 8. O-O {[%clk 0:02:49]}  Bb7 {[%clk 0:02:58]} 9. Qe2 {[%clk 0:02:49]}  O-O {[%clk 0:02:58]} 10. Rd1 {[%clk 0:02:49]}  a6 {[%clk 0:02:47]} 11. c3 {[%clk 0:02:48]}  Ra7 {[%clk 0:02:42]} 12. Ne5 {[%clk 0:02:38]}  Qa8 {[%clk 0:02:21]} 13. f3 {[%clk 0:02:25]}  b5 {[%clk 0:02:15]} 14. Bb3 {[%clk 0:02:22]}  Bd5 {[%clk 0:02:15]} 15. Be3 {[%clk 0:02:09]}  c5 {[%clk 0:01:50]} 16. Bxd5 {[%clk 0:02:00]}  Nxd5 {[%clk 0:01:16]} 17. Nxd7 {[%clk 0:01:59]}  Nxe3 {[%clk 0:01:05]} 18. Nxf8 {[%clk 0:01:56]}  Nxd1 {[%clk 0:01:04]} 19. Rxd1 {[%clk 0:01:48]}  Bxf8 {[%clk 0:00:55]} 20. dxc5 {[%clk 0:01:44]}  Bxc5+ {[%clk 0:00:56]} 21. Kh1 {[%clk 0:01:42]}  Qc8 {[%clk 0:00:36]} 22. Qe5 {[%clk 0:01:28]}  Be7 {[%clk 0:00:32]} 23. Nh5 {[%clk 0:01:23]}  f6 {[%clk 0:00:31]} 24. Qd4 {[%clk 0:01:16]}  Kf7 {[%clk 0:00:20]} 25. Qxa7 {[%clk 0:01:15]} 1-0


[Site "https://www.chess.com"]

[Event "Titled Tuesday Blitz April 11 Early 2023"]
[White "Zampronha, Wladimir Camilo"]
[Black "Vlassov, Nikolai"]
[WhiteFideId "2103087"]
[BlackFideId "4103360"]
[WhiteElo "2176"]
[BlackElo "2324"]
[Result "0-1"]
[Round "01"]
[TimeControl "180+2"]
[Date "2023.04.11"]
[WhiteClock "0:00:01"]
[BlackClock "0:00:13"]

1. e4 {[%clk 0:02:58]}  Nc6 {[%clk 0:02:58]} 2. Nf3 {[%clk 0:02:57]}  d5 {[%clk 0:02:58]} 3. exd5 {[%clk 0:02:56]}  Qxd5 {[%clk 0:02:58]} 4. Nc3 {[%clk 0:02:56]}  Qa5 {[%clk 0:02:59]} 5. Bb5 {[%clk 0:02:57]}  Bd7 {[%clk 0:02:59]} 6. O-O {[%clk 0:02:52]}  a6 {[%clk 0:02:59]} 7. Ba4 {[%clk 0:02:50]}  Qh5 {[%clk 0:02:38]} 8. d3 {[%clk 0:02:45]}  Nf6 {[%clk 0:02:36]} 9. Re1 {[%clk 0:02:43]}  b5 {[%clk 0:02:35]} 10. Bb3 {[%clk 0:02:43]}  Bg4 {[%clk 0:02:35]} 11. h3 {[%clk 0:02:25]}  Bxf3 {[%clk 0:02:35]} 12. Qxf3 {[%clk 0:02:26]}  Qxf3 {[%clk 0:02:35]} 13. gxf3 {[%clk 0:02:27]}  Nd4 {[%clk 0:02:26]} 14. Kg2 {[%clk 0:02:26]}  e6 {[%clk 0:02:23]} 15. Be3 {[%clk 0:02:26]}  Bc5 {[%clk 0:02:18]} 16. Ne4 {[%clk 0:02:23]}  Ba7 {[%clk 0:01:57]} 17. c3 {[%clk 0:02:13]}  Nf5 {[%clk 0:01:54]} 18. Bxa7 {[%clk 0:02:09]}  Rxa7 {[%clk 0:01:55]} 19. Nxf6+ {[%clk 0:02:08]}  gxf6 {[%clk 0:01:54]} 20. Re4 {[%clk 0:02:01]}  h5 {[%clk 0:01:46]} 21. a4 {[%clk 0:01:52]}  Rg8+ {[%clk 0:01:37]} 22. Kh2 {[%clk 0:01:50]}  c6 {[%clk 0:01:36]} 23. Rg1 {[%clk 0:01:43]}  Rxg1 {[%clk 0:01:34]} 24. Kxg1 {[%clk 0:01:44]}  Ke7 {[%clk 0:01:28]} 25. d4 {[%clk 0:01:05]}  Rb7 {[%clk 0:01:25]} 26. axb5 {[%clk 0:00:53]}  Rxb5 {[%clk 0:01:16]} 27. Bc4 {[%clk 0:00:53]}  Rxb2 {[%clk 0:01:16]} 28. Bxa6 {[%clk 0:00:52]}  Rc2 {[%clk 0:01:13]} 29. c4 {[%clk 0:00:14]}  Rd2 {[%clk 0:00:43]} 30. d5 {[%clk 0:00:07]}  cxd5 {[%clk 0:00:43]} 31. cxd5 {[%clk 0:00:08]}  Rxd5 {[%clk 0:00:43]} 32. Bc4 {[%clk 0:00:06]}  Rc5 {[%clk 0:00:32]} 33. Bf1 {[%clk 0:00:06]}  Rc1 {[%clk 0:00:31]} 34. Kg2 {[%clk 0:00:07]}  Ng7 {[%clk 0:00:21]} 35. Ra4 {[%clk 0:00:07]}  f5 {[%clk 0:00:21]} 36. Rc4 {[%clk 0:00:07]}  Ra1 {[%clk 0:00:19]} 37. Rb4 {[%clk 0:00:07]}  Kf6 {[%clk 0:00:20]} 38. Rb7 {[%clk 0:00:07]}  Ne8 {[%clk 0:00:19]} 39. Rb8 {[%clk 0:00:06]}  Nd6 {[%clk 0:00:19]} 40. Rb6 {[%clk 0:00:07]}  Nc8 {[%clk 0:00:19]} 41. Ra6 {[%clk 0:00:07]}  Rc1 {[%clk 0:00:16]} 42. Ra8 {[%clk 0:00:06]}  Ne7 {[%clk 0:00:16]} 43. Ra7 {[%clk 0:00:06]}  Nd5 {[%clk 0:00:17]} 44. Rd7 {[%clk 0:00:06]}  Nf4+ {[%clk 0:00:17]} 45. Kg1 {[%clk 0:00:03]}  Nxh3+ {[%clk 0:00:17]} 46. Kg2 {[%clk 0:00:03]}  Nf4+ {[%clk 0:00:17]} 47. Kg1 {[%clk 0:00:04]}  h4 {[%clk 0:00:17]} 48. Rd8 {[%clk 0:00:03]}  h3 {[%clk 0:00:17]} 49. Rh8 {[%clk 0:00:04]}  e5 {[%clk 0:00:17]} 50. Kh2 {[%clk 0:00:01]}  Rxf1 {[%clk 0:00:16]} 51. Rh6+ {[%clk 0:00:01]}  Kg5 {[%clk 0:00:15]} 52. Rg6+ {[%clk 0:00:01]}  fxg6 {[%clk 0:00:13]} 0-1


[Site "https://www.chess.com"]

[Event "Titled Tuesday Blitz April 11 Early 2023"]
[White "ATM622"]
[Black "Poliakova, Varvara"]
[BlackFideId "13518313"]
[WhiteElo "2280"]
[BlackElo "2075"]
[Result "0-1"]
[Round "01"]
[TimeControl "180+2"]
[Date "2023.04.11"]
[WhiteClock "0:00:36"]
[BlackClock "0:02:04"]

1. d4 {[%clk 0:02:58]}  f5 {[%clk 0:02:55]} 2. c4 {[%clk 0:02:58]}  d6 {[%clk 0:02:54]} 3. d5 {[%clk 0:02:57]}  e5 {[%clk 0:02:52]} 4. dxe6 {[%clk 0:02:56]}  Bxe6 {[%clk 0:02:52]} 5. b3 {[%clk 0:02:55]}  Nf6 {[%clk 0:02:52]} 6. Bb2 {[%clk 0:02:55]}  g6 {[%clk 0:02:52]} 7. g3 {[%clk 0:02:55]}  Bg7 {[%clk 0:02:52]} 8. Bg2 {[%clk 0:02:55]}  Nc6 {[%clk 0:02:51]} 9. Nf3 {[%clk 0:02:55]}  O-O {[%clk 0:02:47]} 10. Ng5 {[%clk 0:02:45]}  Qd7 {[%clk 0:02:33]} 11. Nxe6 {[%clk 0:02:33]}  Qxe6 {[%clk 0:02:34]} 12. O-O {[%clk 0:02:29]}  Ne4 {[%clk 0:02:30]} 13. Bxg7 {[%clk 0:02:25]}  Kxg7 {[%clk 0:02:31]} 14. e3 {[%clk 0:02:19]}  Qf6 {[%clk 0:02:27]} 15. Na3 {[%clk 0:02:14]}  Ne5 {[%clk 0:02:22]} 16. Qc2 {[%clk 0:02:07]}  Rae8 {[%clk 0:02:21]} 17. Rad1 {[%clk 0:02:04]}  h5 {[%clk 0:02:13]} 18. Nb5 {[%clk 0:01:48]}  Rf7 {[%clk 0:02:09]} 19. b4 {[%clk 0:01:38]}  h4 {[%clk 0:02:08]} 20. Bxe4 {[%clk 0:01:33]}  fxe4 {[%clk 0:02:08]} 21. Nd4 {[%clk 0:01:16]}  Nf3+ {[%clk 0:02:06]} 22. Kh1 {[%clk 0:01:07]}  Nxd4 {[%clk 0:02:04]} 23. Rxd4 {[%clk 0:00:36]}  Qf3+ {[%clk 0:02:04]} 0-1


[Site "https://www.chess.com"]

[Event "Titled Tuesday Blitz April 11 Early 2023"]
[White "Chabris, Christopher"]
[Black "Volkov, Maksim"]
[WhiteFideId "2005263"]
[BlackFideId "54123070"]
[WhiteElo "2266"]
[BlackElo "2312"]
[Result "1-0"]
[Round "01"]
[TimeControl "180+2"]
[Date "2023.04.11"]
[WhiteClock "0:00:20"]
[BlackClock "0:00:16"]

1. e4 {[%clk 0:02:57]}  c5 {[%clk 0:02:58]} 2. Nf3 {[%clk 0:02:57]}  d6 {[%clk 0:02:58]} 3. Bb5+ {[%clk 0:02:57]}  Nd7 {[%clk 0:02:56]} 4. d4 {[%clk 0:02:57]}  cxd4 {[%clk 0:02:55]} 5. Qxd4 {[%clk 0:02:57]}  a6 {[%clk 0:02:55]} 6. Bxd7+ {[%clk 0:02:57]}  Bxd7 {[%clk 0:02:55]} 7. c4 {[%clk 0:02:57]}  Nf6 {[%clk 0:02:51]} 8. Nc3 {[%clk 0:02:57]}  e6 {[%clk 0:02:41]} 9. O-O {[%clk 0:02:53]}  Be7 {[%clk 0:02:37]} 10. Bg5 {[%clk 0:02:36]}  Bc6 {[%clk 0:02:32]} 11. Qd3 {[%clk 0:02:30]}  h6 {[%clk 0:02:27]} 12. Bh4 {[%clk 0:02:27]}  O-O {[%clk 0:02:20]} 13. Nd4 {[%clk 0:02:23]}  Bd7 {[%clk 0:02:03]} 14. Rad1 {[%clk 0:02:06]}  Qb6 {[%clk 0:02:00]} 15. b3 {[%clk 0:01:53]}  Qa5 {[%clk 0:01:39]} 16. f4 {[%clk 0:01:40]}  Rfc8 {[%clk 0:01:32]} 17. Rfe1 {[%clk 0:00:54]}  Nxe4 {[%clk 0:00:40]} 18. Rxe4 {[%clk 0:00:53]}  Bxh4 {[%clk 0:00:40]} 19. f5 {[%clk 0:00:51]}  Bf6 {[%clk 0:00:33]} 20. fxe6 {[%clk 0:00:49]}  fxe6 {[%clk 0:00:33]} 21. Rf1 {[%clk 0:00:37]}  Re8 {[%clk 0:00:30]} 22. Rxf6 {[%clk 0:00:29]}  gxf6 {[%clk 0:00:24]} 23. Rg4+ {[%clk 0:00:29]}  Kf8 {[%clk 0:00:24]} 24. Qh7 {[%clk 0:00:24]}  Qg5 {[%clk 0:00:20]} 25. Rxg5 {[%clk 0:00:23]}  hxg5 {[%clk 0:00:21]} 26. Ne4 {[%clk 0:00:22]}  Bc6 {[%clk 0:00:16]} 27. Nxf6 {[%clk 0:00:22]}  Red8 {[%clk 0:00:16]} 28. Qg8+ {[%clk 0:00:20]}  Ke7 {[%clk 0:00:16]} 29. Qg7# {[%clk 0:00:20]} 1-0


[Site "https://www.chess.com"]

[Event "Titled Tuesday Blitz April 11 Early 2023"]
[White "Gabdrakhmanov, Azat"]
[Black "Levitan, Caleb Levi"]
[WhiteFideId "34189197"]
[BlackFideId "14332620"]
[WhiteElo "2306"]
[BlackElo "1963"]
[Result "1-0"]
[Round "01"]
[TimeControl "180+2"]
[Date "2023.04.11"]
[WhiteClock "0:00:17"]
[BlackClock "0:00:01"]

1. e4 {[%clk 0:03:00]}  e5 {[%clk 0:02:58]} 2. Nf3 {[%clk 0:03:00]}  Nc6 {[%clk 0:02:58]} 3. Bb5 {[%clk 0:03:01]}  a6 {[%clk 0:02:57]} 4. Ba4 {[%clk 0:03:01]}  Nf6 {[%clk 0:02:57]} 5. O-O {[%clk 0:03:01]}  Bc5 {[%clk 0:02:57]} 6. c3 {[%clk 0:03:01]}  b5 {[%clk 0:02:56]} 7. Bb3 {[%clk 0:03:01]}  d6 {[%clk 0:02:56]} 8. d4 {[%clk 0:03:01]}  Bb6 {[%clk 0:02:56]} 9. Bg5 {[%clk 0:03:02]}  h6 {[%clk 0:02:43]} 10. Bh4 {[%clk 0:03:02]}  Bb7 {[%clk 0:02:31]} 11. Re1 {[%clk 0:02:43]}  O-O {[%clk 0:02:30]} 12. a4 {[%clk 0:02:26]}  Qe7 {[%clk 0:02:22]} 13. Na3 {[%clk 0:02:21]}  b4 {[%clk 0:02:18]} 14. Nc4 {[%clk 0:02:15]}  bxc3 {[%clk 0:02:12]} 15. bxc3 {[%clk 0:02:15]}  Ba7 {[%clk 0:01:57]} 16. Rb1 {[%clk 0:01:58]}  Rab8 {[%clk 0:01:55]} 17. d5 {[%clk 0:01:50]}  Nd8 {[%clk 0:01:51]} 18. Na5 {[%clk 0:01:49]}  Bc8 {[%clk 0:01:40]} 19. Qd3 {[%clk 0:01:44]}  Nb7 {[%clk 0:01:28]} 20. Nc6 {[%clk 0:01:41]}  Qd7 {[%clk 0:01:23]} 21. Nxa7 {[%clk 0:01:36]}  Nc5 {[%clk 0:01:23]} 22. Qc2 {[%clk 0:01:36]}  g5 {[%clk 0:01:09]} 23. Bg3 {[%clk 0:01:32]}  Nfxe4 {[%clk 0:01:05]} 24. Nc6 {[%clk 0:01:17]}  Rb6 {[%clk 0:01:03]} 25. a5 {[%clk 0:01:14]}  Rxb3 {[%clk 0:00:57]} 26. Rxb3 {[%clk 0:01:13]}  Nxb3 {[%clk 0:00:57]} 27. Qxb3 {[%clk 0:01:10]}  f5 {[%clk 0:00:54]} 28. Qc2 {[%clk 0:00:49]}  Nf6 {[%clk 0:00:41]} 29. h3 {[%clk 0:00:40]}  Nxd5 {[%clk 0:00:39]} 30. Nb4 {[%clk 0:00:34]}  Nxb4 {[%clk 0:00:36]} 31. cxb4 {[%clk 0:00:35]}  Bb7 {[%clk 0:00:32]} 32. Rc1 {[%clk 0:00:29]}  f4 {[%clk 0:00:26]} 33. Bh2 {[%clk 0:00:19]}  Rf7 {[%clk 0:00:20]} 34. Nd2 {[%clk 0:00:19]}  f3 {[%clk 0:00:17]} 35. gxf3 {[%clk 0:00:16]}  Qxh3 {[%clk 0:00:17]} 36. Qg6+ {[%clk 0:00:15]}  Rg7 {[%clk 0:00:16]} 37. Qe8+ {[%clk 0:00:10]}  Kh7 {[%clk 0:00:16]} 38. Qd8 {[%clk 0:00:09]}  g4 {[%clk 0:00:14]} 39. Rxc7 {[%clk 0:00:08]}  gxf3+ {[%clk 0:00:14]} 40. Rxg7+ {[%clk 0:00:07]}  Kxg7 {[%clk 0:00:14]} 41. Qe7+ {[%clk 0:00:07]}  Kg6 {[%clk 0:00:13]} 42. Qxd6+ {[%clk 0:00:07]}  Kf7 {[%clk 0:00:11]} 43. Qc7+ {[%clk 0:00:07]}  Ke8 {[%clk 0:00:10]} 44. Qxe5+ {[%clk 0:00:05]}  Kd8 {[%clk 0:00:10]} 45. Qg3 {[%clk 0:00:05]}  Qd7 {[%clk 0:00:08]} 46. Nf1 {[%clk 0:00:05]}  Qd1 {[%clk 0:00:08]} 47. Qb8+ {[%clk 0:00:05]}  Bc8 {[%clk 0:00:07]} 48. Qb6+ {[%clk 0:00:05]}  Ke8 {[%clk 0:00:07]} 49. Qxh6 {[%clk 0:00:06]}  Qd5 {[%clk 0:00:04]} 50. Qh8+ {[%clk 0:00:06]}  Kd7 {[%clk 0:00:03]} 51. Qh3+ {[%clk 0:00:06]}  Kd8 {[%clk 0:00:03]} 52. Qg3 {[%clk 0:00:06]}  Qe6 {[%clk 0:00:01]} 53. Qc7+ {[%clk 0:00:07]}  Ke8 {[%clk 0:00:02]} 54. Qg3 {[%clk 0:00:07]}  Kd8 {[%clk 0:00:02]} 55. Qxf3 {[%clk 0:00:08]}  Qg6+ {[%clk 0:00:02]} 56. Qg3 {[%clk 0:00:08]}  Qe6 {[%clk 0:00:01]} 57. Qc7+ {[%clk 0:00:09]}  Ke8 {[%clk 0:00:02]} 58. Qe5 {[%clk 0:00:09]}  Qxe5 {[%clk 0:00:02]} 59. Bxe5 {[%clk 0:00:10]}  Kd7 {[%clk 0:00:02]} 60. Ne3 {[%clk 0:00:11]}  Ke6 {[%clk 0:00:03]} 61. Bc3 {[%clk 0:00:11]}  Bb7 {[%clk 0:00:03]} 62. f4 {[%clk 0:00:12]}  Ke7 {[%clk 0:00:02]} 63. f5 {[%clk 0:00:12]}  Kf7 {[%clk 0:00:02]} 64. f6 {[%clk 0:00:13]}  Bc8 {[%clk 0:00:02]} 65. Kf2 {[%clk 0:00:14]}  Bd7 {[%clk 0:00:02]} 66. Kg3 {[%clk 0:00:15]}  Bb5 {[%clk 0:00:03]} 67. Kf4 {[%clk 0:00:16]}  Ke6 {[%clk 0:00:03]} 68. Kg5 {[%clk 0:00:15]}  Bd3 {[%clk 0:00:03]} 69. Ng4 {[%clk 0:00:15]}  Kf7 {[%clk 0:00:02]} 70. Ne5+ {[%clk 0:00:16]}  Ke6 {[%clk 0:00:03]} 71. f7 {[%clk 0:00:15]}  Ke7 {[%clk 0:00:03]} 72. Bd4 {[%clk 0:00:16]}  Bc4 {[%clk 0:00:02]} 73. Bc5+ {[%clk 0:00:16]}  Ke6 {[%clk 0:00:01]} 74. f8=Q {[%clk 0:00:17]}  Bd5 {[%clk 0:00:01]} 75. Qd6# {[%clk 0:00:17]} 1-0


[Site "https://www.chess.com"]